[Event "***Titled Tuesday 3|2 Blitz"]
[Site "Chess.com"]
[Date "2017.02.07"]
[Round "6"]
[White "johnathan113"]
[Black "Gergo85"]
[Result "0-1"]
[WhiteElo "2349"]
[BlackElo "2435"]
[TimeControl "180+2"]
[EndTime "14:28:48 PST"]
[Termination "Gergo85 won by checkmate"]

1. g3 {[%clk 0:03:02]} 1... d5 {[%clk 0:02:59.9]} 2. Nf3 {[%clk 0:03:01.8]} 2...
g6 {[%clk 0:02:59.4]} 3. Bg2 {[%clk 0:03:02.8]} 3... Bg7 {[%clk 0:03:00.3]} 4.
O-O {[%clk 0:03:04.5]} 4... e5 {[%clk 0:03:01.1]} 5. c4 {[%clk 0:03:00.7]} 5...
dxc4 {[%clk 0:03:02]} 6. Qa4+ {[%clk 0:03:00.4]} 6... c6 {[%clk 0:03:02.9]} 7.
Qxc4 {[%clk 0:02:59.3]} 7... Ne7 {[%clk 0:03:04.5]} 8. Nc3 {[%clk 0:02:57.3]}
8... O-O {[%clk 0:03:05]} 9. d3 {[%clk 0:02:58.7]} 9... Na6 {[%clk 0:03:06.2]}
10. Qb3 {[%clk 0:02:52.8]} 10... Qb6 {[%clk 0:02:40.3]} 11. Qa3 {[%clk
0:02:44.9]} 11... Qb4 {[%clk 0:02:41.4]} 12. Qxb4 {[%clk 0:02:21.7]} 12... Nxb4
{[%clk 0:02:43.3]} 13. a3 {[%clk 0:02:23.1]} 13... Nc2 {[%clk 0:02:43.1]} 14.
Rb1 {[%clk 0:02:22.5]} 14... Nd4 {[%clk 0:02:44.1]} 15. b4 {[%clk 0:02:19.5]}
15... Bg4 {[%clk 0:02:21]} 16. Bg5 {[%clk 0:01:58]} 16... Nd5 {[%clk 0:02:10.4]}
17. Nxd5 {[%clk 0:01:53.8]} 17... Nxe2+ {[%clk 0:02:05.9]} 18. Kh1 {[%clk
0:01:55.2]} 18... cxd5 {[%clk 0:02:07.3]} 19. Rbe1 {[%clk 0:01:51.6]} 19... Nc3
{[%clk 0:01:53]} 20. Bd2 {[%clk 0:01:29.1]} 20... e4 {[%clk 0:01:21.1]} 21. dxe4
{[%clk 0:01:31]} 21... Nxe4 {[%clk 0:01:22]} 22. Be3 {[%clk 0:01:29.4]} 22... a5
{[%clk 0:01:22]} 23. b5 {[%clk 0:01:11.6]} 23... Rac8 {[%clk 0:01:04.4]} 24. Bb6
{[%clk 0:00:58.7]} 24... Bxf3 {[%clk 0:00:41.1]} 25. Bxf3 {[%clk 0:01:00.6]}
25... Nd2 {[%clk 0:00:42.2]} 26. Bxd5 {[%clk 0:01:02.1]} 26... Nxf1 {[%clk
0:00:42]} 27. Rxf1 {[%clk 0:01:04]} 27... Rc3 {[%clk 0:00:34.4]} 28. Bxa5 {[%clk
0:01:02.9]} 28... Rxa3 {[%clk 0:00:19.2]} 29. Bb4 {[%clk 0:01:03.5]} 29... Rd3
{[%clk 0:00:14.7]} 30. Bxb7 {[%clk 0:00:51]} 30... Rb8 {[%clk 0:00:15.7]} 31.
Bc6 {[%clk 0:00:52.4]} 31... Rb3 {[%clk 0:00:16.7]} 32. Bd6 {[%clk 0:00:50.6]}
32... R8xb5 {[%clk 0:00:15.6]} 33. Bxb5 {[%clk 0:00:50.4]} 33... Rxb5 {[%clk
0:00:17.5]} 34. Rc1 {[%clk 0:00:50.2]} 34... h5 {[%clk 0:00:18.3]} 35. Rc8+
{[%clk 0:00:47.4]} 35... Kh7 {[%clk 0:00:19.3]} 36. Rc7 {[%clk 0:00:49.3]} 36...
Rf5 {[%clk 0:00:20.1]} 37. Kg2 {[%clk 0:00:50.2]} 37... Bd4 {[%clk 0:00:18.1]}
38. f4 {[%clk 0:00:44.2]} 38... Kg7 {[%clk 0:00:19.2]} 39. Kf3 {[%clk
0:00:45.4]} 39... Rb5 {[%clk 0:00:18.5]} 40. Ke4 {[%clk 0:00:46.5]} 40... Bf6
{[%clk 0:00:19]} 41. h3 {[%clk 0:00:42.7]} 41... Rb6 {[%clk 0:00:17.7]} 42. Bc5
{[%clk 0:00:38.5]} 42... Rb3 {[%clk 0:00:12.8]} 43. g4 {[%clk 0:00:39]} 43...
Rxh3 {[%clk 0:00:13.5]} 44. g5 {[%clk 0:00:39.3]} 44... Bb2 {[%clk 0:00:13.8]}
45. Rc8 {[%clk 0:00:40.7]} 45... Kh7 {[%clk 0:00:09.8]} 46. Rc7 {[%clk
0:00:40.7]} 46... Kg7 {[%clk 0:00:10.8]} 47. Rc8 {[%clk 0:00:41.8]} 47... Rb3
{[%clk 0:00:10]} 48. Bf8+ {[%clk 0:00:38.9]} 48... Kh7 {[%clk 0:00:11]} 49. Rc7
{[%clk 0:00:39.1]} 49... Kg8 {[%clk 0:00:11.5]} 50. Rc8 {[%clk 0:00:37.7]} 50...
Kh7 {[%clk 0:00:10.5]} 51. Rc7 {[%clk 0:00:33.3]} 51... h4 {[%clk 0:00:06.4]}
52. Bh6 {[%clk 0:00:28.3]} 52... Kg8 {[%clk 0:00:06.4]} 53. Rc8+ {[%clk
0:00:21.2]} 53... Kh7 {[%clk 0:00:07.5]} 54. Rc7 {[%clk 0:00:21.3]} 54... Kg8
{[%clk 0:00:08.7]} 55. f5 {[%clk 0:00:23]} 55... Rb4+ {[%clk 0:00:08.9]} 56. Kf3
{[%clk 0:00:22.1]} 56... gxf5 {[%clk 0:00:09.4]} 57. Kg2 {[%clk 0:00:22.9]}
57... Rg4+ {[%clk 0:00:07.4]} 58. Kh3 {[%clk 0:00:23.8]} 58... Be5 {[%clk
0:00:08.3]} 59. Rc5 {[%clk 0:00:20.4]} 59... Re4 {[%clk 0:00:09.4]} 60. Rc8+
{[%clk 0:00:14.5]} 60... Kh7 {[%clk 0:00:10.1]} 61. Rf8 {[%clk 0:00:16.4]} 61...
Kg6 {[%clk 0:00:08.8]} 62. Rg8+ {[%clk 0:00:17.2]} 62... Kh7 {[%clk 0:00:07.9]}
63. Rf8 {[%clk 0:00:18.8]} 63... Kg6 {[%clk 0:00:07.7]} 64. Rg8+ {[%clk
0:00:19.8]} 64... Kh5 {[%clk 0:00:06.7]} 65. Rf8 {[%clk 0:00:20]} 65... Re3+
{[%clk 0:00:07.1]} 66. Kg2 {[%clk 0:00:21.5]} 66... Kg4 {[%clk 0:00:07.5]} 67.
Kf2 {[%clk 0:00:13.5]} 67... Rf3+ {[%clk 0:00:07.9]} 68. Ke2 {[%clk 0:00:14.2]}
68... h3 {[%clk 0:00:09.4]} 69. Rc8 {[%clk 0:00:12]} 69... h2 {[%clk 0:00:10.3]}
70. Rc1 {[%clk 0:00:13]} 70... Rg3 {[%clk 0:00:11]} 71. Rc4+ {[%clk 0:00:03.2]}
71... f4 {[%clk 0:00:11]} 72. g6 {[%clk 0:00:04.7]} 72... h1=Q {[%clk
0:00:08.8]} 73. gxf7 {[%clk 0:00:06.6]} 73... Qf3+ {[%clk 0:00:07.7]} 74. Kd2
{[%clk 0:00:07.9]} 74... Qd3+ {[%clk 0:00:08.2]} 75. Ke1 {[%clk 0:00:08.4]}
75... Rg1+ {[%clk 0:00:08]} 76. Kf2 {[%clk 0:00:09.3]} 76... Qf1# {[%clk
0:00:09.1]} 0-1

[Event "***Titled Tuesday 3|2 Blitz"]
[Site "Chess.com"]
[Date "2017.02.07"]
[Round "6"]
[White "AungTZ"]
[Black "pastouche06"]
[Result "0-1"]
[WhiteElo "2071"]
[BlackElo "2339"]
[TimeControl "180+2"]
[EndTime "14:28:50 PST"]
[Termination "pastouche06 won by resignation"]

1. e4 {[%clk 0:03:02]} 1... c6 {[%clk 0:03:00.3]} 2. d4 {[%clk 0:03:00.9]} 2...
d5 {[%clk 0:03:00.8]} 3. Nc3 {[%clk 0:03:01.2]} 3... dxe4 {[%clk 0:03:01.5]} 4.
Nxe4 {[%clk 0:03:02.1]} 4... Bf5 {[%clk 0:03:02.8]} 5. Ng3 {[%clk 0:03:02.8]}
5... Bg6 {[%clk 0:03:03.8]} 6. h4 {[%clk 0:03:02.5]} 6... h6 {[%clk 0:03:03.6]}
7. Nf3 {[%clk 0:03:03.4]} 7... e6 {[%clk 0:03:03.4]} 8. Bd3 {[%clk 0:02:27.7]}
8... Bxd3 {[%clk 0:02:51.2]} 9. Qxd3 {[%clk 0:02:28.7]} 9... Nf6 {[%clk
0:02:46.1]} 10. Bd2 {[%clk 0:02:26.4]} 10... Be7 {[%clk 0:02:46.5]} 11. O-O-O
{[%clk 0:02:26.1]} 11... O-O {[%clk 0:02:46]} 12. Kb1 {[%clk 0:02:25.4]} 12...
c5 {[%clk 0:02:42.1]} 13. Be3 {[%clk 0:02:03.7]} 13... Ng4 {[%clk 0:02:07.2]}
14. Qe4 {[%clk 0:01:37.7]} 14... Nxe3 {[%clk 0:02:05.7]} 15. fxe3 {[%clk
0:01:34.1]} 15... Qc7 {[%clk 0:01:53.7]} 16. Ne2 {[%clk 0:01:23.8]} 16... Nd7
{[%clk 0:01:45.6]} 17. Ne5 {[%clk 0:00:35.5]} 17... Nf6 {[%clk 0:01:35.1]} 18.
Qf3 {[%clk 0:00:36.1]} 18... cxd4 {[%clk 0:01:34]} 19. exd4 {[%clk 0:00:36.9]}
19... Rac8 {[%clk 0:01:32.7]} 20. c3 {[%clk 0:00:38]} 20... Bd6 {[%clk
0:01:27.6]} 21. Nd3 {[%clk 0:00:38.8]} 21... Nd7 {[%clk 0:00:59.1]} 22. g4
{[%clk 0:00:35.9]} 22... g6 {[%clk 0:00:49.5]} 23. Qe3 {[%clk 0:00:32.3]} 23...
Kg7 {[%clk 0:00:48.1]} 24. Rdf1 {[%clk 0:00:26.9]} 24... e5 {[%clk 0:00:45.6]}
25. dxe5 {[%clk 0:00:20.6]} 25... Nxe5 {[%clk 0:00:47.5]} 26. Nxe5 {[%clk
0:00:20.9]} 26... Bxe5 {[%clk 0:00:49.4]} 27. h5 {[%clk 0:00:17.5]} 27... g5
{[%clk 0:00:34.5]} 28. Nd4 {[%clk 0:00:16.5]} 28... Rfe8 {[%clk 0:00:24.2]} 29.
Nf5+ {[%clk 0:00:16.1]} 29... Kh7 {[%clk 0:00:25.7]} 30. Qd3 {[%clk 0:00:16.8]}
30... Qc4 {[%clk 0:00:22.8]} 31. Qc2 {[%clk 0:00:16.9]} 31... Kh8 {[%clk
0:00:09.2]} 32. Ne3 {[%clk 0:00:15.4]} 32... Qe6 {[%clk 0:00:09.2]} 33. Nf5
{[%clk 0:00:15.8]} 33... Bf4 {[%clk 0:00:10.1]} 34. Rd1 {[%clk 0:00:15.6]} 34...
Qe2 {[%clk 0:00:10.3]} 35. Qb3 {[%clk 0:00:15.6]} 35... Qxg4 {[%clk 0:00:10.1]}
36. Qxf7 {[%clk 0:00:15.6]} 36... Be5 {[%clk 0:00:11.3]} 37. Qg6 {[%clk
0:00:14]} 37... Qe4+ {[%clk 0:00:08]} 38. Ka1 {[%clk 0:00:14]} 38... Qc6 {[%clk
0:00:09.9]} 39. Qxh6+ {[%clk 0:00:12.4]} 39... Qxh6 {[%clk 0:00:10.6]} 40. Nxh6
{[%clk 0:00:14.3]} 40... Kg7 {[%clk 0:00:11.7]} 41. Ng4 {[%clk 0:00:15.1]} 41...
Bf4 {[%clk 0:00:11]} 42. a3 {[%clk 0:00:16.2]} 42... Rc7 {[%clk 0:00:11.8]} 43.
h6+ {[%clk 0:00:17.3]} 43... Kh8 {[%clk 0:00:12.1]} 44. Rd5 {[%clk 0:00:18]}
44... Re6 {[%clk 0:00:08.7]} 45. Rf5 {[%clk 0:00:17.4]} 45... Kh7 {[%clk
0:00:08.6]} 46. Rf8 {[%clk 0:00:17.2]} 46... Rce7 {[%clk 0:00:07.7]} 47. Nf6+
{[%clk 0:00:17.2]} 47... Kg6 {[%clk 0:00:08.9]} 48. h7 {[%clk 0:00:18.4]} 48...
Re1+ {[%clk 0:00:03.7]} 49. Rxe1 {[%clk 0:00:18.6]} 49... Rxe1+ {[%clk
0:00:05.6]} 50. Ka2 {[%clk 0:00:19.3]} 50... Rh1 {[%clk 0:00:07.5]} 51. h8=Q
{[%clk 0:00:19]} 51... Rxh8 {[%clk 0:00:09.1]} 52. Rxh8 {[%clk 0:00:20.2]} 52...
Kxf6 {[%clk 0:00:11]} 53. Kb3 {[%clk 0:00:21.9]} 53... g4 {[%clk 0:00:11.2]} 54.
Kc2 {[%clk 0:00:20.4]} 54... g3 {[%clk 0:00:12.5]} 55. Rd8 {[%clk 0:00:15.6]}
55... g2 {[%clk 0:00:11.2]} 56. Rd1 {[%clk 0:00:17.5]} 56... Be3 {[%clk
0:00:12.4]} 57. Kd3 {[%clk 0:00:18.6]} 57... g1=Q {[%clk 0:00:13.8]} 58. Rxg1
{[%clk 0:00:19.4]} 58... Bxg1 {[%clk 0:00:15.7]} 59. b4 {[%clk 0:00:20.1]} 59...
Ke7 {[%clk 0:00:17.2]} 60. c4 {[%clk 0:00:22]} 60... Kd6 {[%clk 0:00:18.5]} 61.
c5+ {[%clk 0:00:23.9]} 61... Kc6 {[%clk 0:00:19.5]} 62. Kc4 {[%clk 0:00:24.9]}
62... Kc7 {[%clk 0:00:13.3]} 63. a4 {[%clk 0:00:25.8]} 63... Be3 {[%clk
0:00:14]} 64. Kd5 {[%clk 0:00:25.4]} 64... Bg5 {[%clk 0:00:14.7]} 65. b5 {[%clk
0:00:26.4]} 65... Be7 {[%clk 0:00:15.5]} 66. a5 {[%clk 0:00:26.9]} 66... a6
{[%clk 0:00:13.9]} 67. b6+ {[%clk 0:00:19.7]} 67... Kd7 {[%clk 0:00:12.5]} 68.
c6+ {[%clk 0:00:10.1]} 68... bxc6+ {[%clk 0:00:14.4]} 69. Kc4 {[%clk 0:00:11.3]}
69... Kc8 {[%clk 0:00:14.5]} 70. Kd4 {[%clk 0:00:11.5]} 70... Kb7 {[%clk
0:00:15.4]} 71. Kc4 {[%clk 0:00:12.5]} 71... Bh4 {[%clk 0:00:13.9]} 72. Kc5
{[%clk 0:00:12.8]} 72... Bf2+ {[%clk 0:00:14.7]} 73. Kc4 {[%clk 0:00:13.6]}
73... Be1 {[%clk 0:00:15.9]} 0-1

[Event "***Titled Tuesday 3|2 Blitz"]
[Site "Chess.com"]
[Date "2017.02.07"]
[Round "6"]
[White "Rozum_Ivan"]
[Black "Grebeniuk-S"]
[Result "1-0"]
[WhiteElo "2570"]
[BlackElo "2443"]
[TimeControl "180+2"]
[EndTime "14:29:14 PST"]
[Termination "Rozum_Ivan won by resignation"]

1. e4 {[%clk 0:03:02]} 1... d5 {[%clk 0:03:01]} 2. exd5 {[%clk 0:03:02.8]} 2...
Qxd5 {[%clk 0:03:02.9]} 3. d4 {[%clk 0:03:02.6]} 3... e5 {[%clk 0:03:03.6]} 4.
Nf3 {[%clk 0:02:48.8]} 4... exd4 {[%clk 0:03:03.9]} 5. Nxd4 {[%clk 0:02:41.8]}
5... Bc5 {[%clk 0:02:54.1]} 6. Be3 {[%clk 0:02:40.2]} 6... Nc6 {[%clk
0:02:12.1]} 7. Nc3 {[%clk 0:02:39.3]} 7... Bb4 {[%clk 0:02:12.4]} 8. Qd2 {[%clk
0:02:32.7]} 8... Bxc3 {[%clk 0:02:13.2]} 9. Qxc3 {[%clk 0:02:34.6]} 9... Nge7
{[%clk 0:02:01.4]} 10. Bc4 {[%clk 0:02:32.9]} 10... Qxg2 {[%clk 0:01:58.6]} 11.
O-O-O {[%clk 0:02:34]} 11... Nxd4 {[%clk 0:01:39.1]} 12. Bxd4 {[%clk 0:02:34.6]}
12... Be6 {[%clk 0:00:53.1]} 13. Rhg1 {[%clk 0:02:20.6]} 13... Qxh2 {[%clk
0:00:42.5]} 14. Bxe6 {[%clk 0:02:20.9]} 14... fxe6 {[%clk 0:00:35.4]} 15. Rxg7
{[%clk 0:02:21.4]} 15... Nc6 {[%clk 0:00:24.7]} 16. Rxc7 {[%clk 0:02:17.9]}
16... Qxc7 {[%clk 0:00:21.8]} 17. Bxh8 {[%clk 0:02:18.8]} 17... Rd8 {[%clk
0:00:21.6]} 18. Re1 {[%clk 0:02:19.5]} 18... Qf4+ {[%clk 0:00:19.6]} 19. Kb1
{[%clk 0:02:19.4]} 19... Rd6 {[%clk 0:00:18.7]} 20. a3 {[%clk 0:02:15.3]} 20...
Qxf2 {[%clk 0:00:18.3]} 21. Bf6 {[%clk 0:02:08]} 21... Kd7 {[%clk 0:00:16.2]}
22. Bg5 {[%clk 0:02:05.1]} 22... Qf7 {[%clk 0:00:14.9]} 23. Be3 {[%clk 0:02:01]}
23... h5 {[%clk 0:00:14.7]} 24. Rg1 {[%clk 0:02:01.7]} 24... e5 {[%clk
0:00:14.1]} 25. Bc5 {[%clk 0:01:59.9]} 25... Rd5 {[%clk 0:00:12.6]} 26. Qh3+
{[%clk 0:02:00.9]} 26... Kc7 {[%clk 0:00:12.7]} 27. Rf1 {[%clk 0:01:59.4]} 27...
Qd7 {[%clk 0:00:12.9]} 28. Qe3 {[%clk 0:01:37.5]} 28... Rd1+ {[%clk 0:00:13.5]}
29. Rxd1 {[%clk 0:01:38.5]} 29... Qxd1+ {[%clk 0:00:15.4]} 30. Ka2 {[%clk
0:01:40.2]} 30... Qd5+ {[%clk 0:00:16.8]} 31. b3 {[%clk 0:01:40.6]} 31... e4
{[%clk 0:00:17.8]} 32. Bf8 {[%clk 0:01:37.8]} 32... Qe5 {[%clk 0:00:16.1]} 33.
Bh6 {[%clk 0:01:36]} 33... Kd7 {[%clk 0:00:17.1]} 34. Bf4 {[%clk 0:01:35.4]}
34... Qe6 {[%clk 0:00:18.5]} 35. Bg3 {[%clk 0:01:34.2]} 35... b6 {[%clk
0:00:14.2]} 36. Kb1 {[%clk 0:01:30]} 36... Ne7 {[%clk 0:00:15.7]} 37. Qd4+
{[%clk 0:01:27.6]} 37... Qd5 {[%clk 0:00:15.8]} 38. Qg7 {[%clk 0:01:27.5]} 38...
e3 {[%clk 0:00:12.9]} 39. Qc3 {[%clk 0:01:10.4]} 39... Qd1+ {[%clk 0:00:12.9]}
40. Kb2 {[%clk 0:01:10.5]} 40... e2 {[%clk 0:00:14.3]} 41. Qe5 {[%clk
0:01:08.9]} 41... Qd5 {[%clk 0:00:09.7]} 42. Qxe2 {[%clk 0:01:08.3]} 42... Nc6
{[%clk 0:00:11.2]} 43. Ka2 {[%clk 0:01:05.3]} 43... Nd4 {[%clk 0:00:11.3]} 44.
Qd3 {[%clk 0:01:05.7]} 44... Kc6 {[%clk 0:00:10.6]} 45. Qg6+ {[%clk 0:00:56.2]}
45... Ne6 {[%clk 0:00:11.2]} 46. Qg8 {[%clk 0:00:51]} 46... b5 {[%clk
0:00:10.5]} 47. Qa8+ {[%clk 0:00:50.2]} 47... Kc5 {[%clk 0:00:11]} 48. Qxa7+
{[%clk 0:00:46.3]} 48... Kc6 {[%clk 0:00:12.2]} 49. Qa8+ {[%clk 0:00:39]} 49...
Kc5 {[%clk 0:00:13.6]} 50. Bf2+ {[%clk 0:00:36.7]} 50... Kd6 {[%clk 0:00:13.1]}
51. Qb8+ {[%clk 0:00:36.5]} 51... Kc6 {[%clk 0:00:12.9]} 52. a4 {[%clk 0:00:28]}
52... bxa4 {[%clk 0:00:13.7]} 53. Qa8+ {[%clk 0:00:29.3]} 53... Kd6 {[%clk
0:00:14.7]} 54. Bg3+ {[%clk 0:00:30.8]} 54... Kc5 {[%clk 0:00:13.4]} 55. Qa5+
{[%clk 0:00:31.4]} 55... Kc6 {[%clk 0:00:14.1]} 56. Qxa4+ {[%clk 0:00:32.8]}
56... Kb7 {[%clk 0:00:14.4]} 57. Bf2 {[%clk 0:00:31.1]} 57... Qc6 {[%clk
0:00:15.4]} 58. Qb4+ {[%clk 0:00:31.1]} 58... Kc8 {[%clk 0:00:16.9]} 59. Kb2
{[%clk 0:00:30.7]} 59... Nc7 {[%clk 0:00:16.5]} 60. Qh4 {[%clk 0:00:25.8]} 60...
Qd5 {[%clk 0:00:16.5]} 61. Qf4 {[%clk 0:00:23.7]} 61... Ne6 {[%clk 0:00:17.2]}
62. Qe3 {[%clk 0:00:22.3]} 62... Kd7 {[%clk 0:00:17.9]} 63. c4 {[%clk
0:00:22.5]} 63... Qf5 {[%clk 0:00:17.7]} 64. b4 {[%clk 0:00:22.9]} 64... Qf4
{[%clk 0:00:16.4]} 65. Qd3+ {[%clk 0:00:21]} 65... Ke8 {[%clk 0:00:15.9]} 66.
Be3 {[%clk 0:00:22]} 66... Qh2+ {[%clk 0:00:16.2]} 67. Kb3 {[%clk 0:00:23.2]}
67... Qh1 {[%clk 0:00:14.4]} 68. b5 {[%clk 0:00:22.7]} 68... h4 {[%clk
0:00:14.4]} 69. c5 {[%clk 0:00:17.1]} 69... h3 {[%clk 0:00:12.3]} 70. c6 {[%clk
0:00:18.3]} 70... h2 {[%clk 0:00:13.1]} 71. Qd7+ {[%clk 0:00:19.1]} 71... Kf8
{[%clk 0:00:13.5]} 72. Bh6+ {[%clk 0:00:20.2]} 72... Kg8 {[%clk 0:00:12.6]} 73.
Qxe6+ {[%clk 0:00:21]} 73... Kh7 {[%clk 0:00:14.2]} 74. Qf6 {[%clk 0:00:05.8]}
74... Qb1+ {[%clk 0:00:13.2]} 75. Ka4 {[%clk 0:00:06.9]} 75... Qa2+ {[%clk
0:00:12.2]} 76. Kb4 {[%clk 0:00:08.2]} 76... Qb1+ {[%clk 0:00:13.4]} 77. Ka5
{[%clk 0:00:08.9]} 77... Qe1+ {[%clk 0:00:13.5]} 78. Ka6 {[%clk 0:00:08.7]}
78... Qg1 {[%clk 0:00:11.2]} 79. Bg5 {[%clk 0:00:07.7]} 79... h1=Q {[%clk
0:00:07]} 80. Qf7+ {[%clk 0:00:08.6]} 80... Kh8 {[%clk 0:00:08.3]} 81. Bf6+
{[%clk 0:00:09.9]} 1-0